[Event "Early-Titled-Tuesday-Blitz-September-26-2023"]
[Site "Chess.com"]
[Date "2023.09.26"]
[Round "1"]
[White "Martial2008"]
[Black "Mihajlovskij"]
[Result "1-0"]
[WhiteElo "2606"]
[BlackElo "2278"]
[TimeControl "180+1"]
[EndTime "8:07:45 PDT"]
[Termination "Martial2008 won by resignation"]

1. e4 {[%clk 0:03:00.9]} 1... d5 {[%clk 0:02:22]} 2. exd5 {[%clk 0:02:58.4]}
2... Qxd5 {[%clk 0:02:19.8]} 3. Nc3 {[%clk 0:02:58.3]} 3... Qe5+ {[%clk
0:02:20.2]} 4. Be2 {[%clk 0:02:57]} 4... Bg4 {[%clk 0:02:20.3]} 5. d4 {[%clk
0:02:55.9]} 5... Bxe2 {[%clk 0:02:19.7]} 6. Ngxe2 {[%clk 0:02:55.2]} 6... Qa5
{[%clk 0:02:19.1]} 7. Bf4 {[%clk 0:02:50.9]} 7... Nf6 {[%clk 0:02:18.7]} 8. O-O
{[%clk 0:02:50.4]} 8... Nc6 {[%clk 0:02:18.5]} 9. a3 {[%clk 0:02:50.2]} 9...
O-O-O {[%clk 0:02:18.1]} 10. b4 {[%clk 0:02:47.6]} 10... Qf5 {[%clk 0:02:18.7]}
11. Qd2 {[%clk 0:02:43.3]} 11... e5 {[%clk 0:02:16.8]} 12. Be3 {[%clk 0:02:37]}
12... exd4 {[%clk 0:01:57.6]} 13. Nxd4 {[%clk 0:02:31.6]} 13... Nxd4 {[%clk
0:01:57]} 14. Bxd4 {[%clk 0:02:32.5]} 14... Bd6 {[%clk 0:01:53.7]} 15. h3 {[%clk
0:02:31.4]} 15... Be5 {[%clk 0:01:39.7]} 16. Ne2 {[%clk 0:02:31.4]} 16... Ne4
{[%clk 0:01:38.1]} 17. Qd3 {[%clk 0:02:24.7]} 17... Bxd4 {[%clk 0:01:35]} 18.
Nxd4 {[%clk 0:02:25.6]} 18... Qd5 {[%clk 0:01:35.5]} 19. Rad1 {[%clk 0:02:23.2]}
19... Rhe8 {[%clk 0:01:34.6]} 20. Rfe1 {[%clk 0:02:19.5]} 20... Nd6 {[%clk
0:01:29.3]} 21. Rxe8 {[%clk 0:02:19.1]} 21... Rxe8 {[%clk 0:01:30.2]} 22. c3
{[%clk 0:02:13.1]} 22... g6 {[%clk 0:01:28.8]} 23. Qg3 {[%clk 0:02:06]} 23... f5
{[%clk 0:01:27.3]} 24. Kh2 {[%clk 0:01:54.2]} 24... Qa2 {[%clk 0:01:26.5]} 25.
Qd3 {[%clk 0:01:19.8]} 25... Qxf2 {[%clk 0:01:17.9]} 26. Nb5 {[%clk 0:01:19.5]}
26... Qf4+ {[%clk 0:01:02.8]} 27. Kg1 {[%clk 0:01:14.1]} 27... Rd8 {[%clk
0:00:58.9]} 28. Qe2 {[%clk 0:01:06.4]} 28... Qe4 {[%clk 0:00:49.5]} 29. Qxe4
{[%clk 0:00:58.8]} 29... fxe4 {[%clk 0:00:47.8]} 30. Nxa7+ {[%clk 0:00:58.9]}
30... Kd7 {[%clk 0:00:45.5]} 31. Nb5 {[%clk 0:00:57.4]} 31... Ke6 {[%clk
0:00:43.7]} 32. Nxc7+ {[%clk 0:00:50.2]} 32... Ke5 {[%clk 0:00:43.5]} 33. Nb5
{[%clk 0:00:48.4]} 33... Nf7 {[%clk 0:00:39.3]} 34. Rxd8 {[%clk 0:00:46.3]}
34... Nxd8 {[%clk 0:00:40.2]} 35. Kf2 {[%clk 0:00:46.2]} 35... Nc6 {[%clk
0:00:34.4]} 36. Ke3 {[%clk 0:00:44.9]} 36... Ne7 {[%clk 0:00:34.5]} 37. Nd4
{[%clk 0:00:43.6]} 37... Nd5+ {[%clk 0:00:33.4]} 38. Kd2 {[%clk 0:00:44]} 38...
Kf4 {[%clk 0:00:32.3]} 39. Ne2+ {[%clk 0:00:44.6]} 39... Ke5 {[%clk 0:00:31.6]}
40. c4 {[%clk 0:00:45.2]} 40... Nb6 {[%clk 0:00:31.6]} 41. Kc3 {[%clk
0:00:44.7]} 41... g5 {[%clk 0:00:27.7]} 42. b5 {[%clk 0:00:42.1]} 42... h5
{[%clk 0:00:21.1]} 43. Kb4 {[%clk 0:00:41.5]} 43... Nd7 {[%clk 0:00:20.5]} 44.
a4 {[%clk 0:00:41.6]} 44... e3 {[%clk 0:00:19.5]} 45. a5 {[%clk 0:00:41.3]}
45... h4 {[%clk 0:00:19.5]} 46. a6 {[%clk 0:00:36.3]} 46... bxa6 {[%clk
0:00:20.4]} 47. bxa6 {[%clk 0:00:37.2]} 47... Nb6 {[%clk 0:00:20.6]} 48. a7
{[%clk 0:00:35.1]} 48... Ke4 {[%clk 0:00:20.4]} 49. c5 {[%clk 0:00:35.7]} 49...
Na8 {[%clk 0:00:20.8]} 50. Kc4 {[%clk 0:00:36.2]} 50... Nc7 {[%clk 0:00:18.6]}
51. c6 {[%clk 0:00:29.6]} 51... Ke5 {[%clk 0:00:18.4]} 52. Kc5 {[%clk
0:00:29.6]} 52... Ke4 {[%clk 0:00:18.5]} 53. Kb6 {[%clk 0:00:28.3]} 53... Na8+
{[%clk 0:00:18.2]} 54. Kb7 {[%clk 0:00:27.2]} 54... Kd3 {[%clk 0:00:18.9]} 55.
Ng1 {[%clk 0:00:26.9]} 55... e2 {[%clk 0:00:14.8]} 56. Nxe2 {[%clk 0:00:24.3]}
56... Kxe2 {[%clk 0:00:15.7]} 57. Kxa8 {[%clk 0:00:23.8]} 1-0

[Event "Early-Titled-Tuesday-Blitz-September-26-2023"]
[Site "Chess.com"]
[Date "2023.09.26"]
[Round "1"]
[White "giomar27"]
[Black "gau248"]
[Result "0-1"]
[WhiteElo "2254"]
[BlackElo "2594"]
[TimeControl "180+1"]
[EndTime "8:07:50 PDT"]
[Termination "gau248 won by resignation"]

1. e4 {[%clk 0:02:59.5]} 1... c6 {[%clk 0:02:52.1]} 2. Nf3 {[%clk 0:02:53.9]}
2... d5 {[%clk 0:02:51.8]} 3. exd5 {[%clk 0:02:54.6]} 3... cxd5 {[%clk
0:02:51.9]} 4. Ne5 {[%clk 0:02:55.2]} 4... Nc6 {[%clk 0:02:50.6]} 5. Bb5 {[%clk
0:02:54.5]} 5... Qb6 {[%clk 0:02:41.7]} 6. Nc3 {[%clk 0:02:21.7]} 6... Nf6
{[%clk 0:02:35.7]} 7. O-O {[%clk 0:02:12.9]} 7... e6 {[%clk 0:02:26.4]} 8. d4
{[%clk 0:02:12.5]} 8... a6 {[%clk 0:02:14.9]} 9. Bxc6+ {[%clk 0:02:08.9]} 9...
bxc6 {[%clk 0:02:15.8]} 10. Na4 {[%clk 0:01:50.1]} 10... Qc7 {[%clk 0:02:15.2]}
11. f4 {[%clk 0:01:40.7]} 11... Bd6 {[%clk 0:02:10.5]} 12. Nc5 {[%clk
0:01:38.3]} 12... O-O {[%clk 0:02:05.6]} 13. Be3 {[%clk 0:01:34]} 13... a5
{[%clk 0:02:03]} 14. Rf3 {[%clk 0:01:33.2]} 14... Ne4 {[%clk 0:01:42.4]} 15. Rh3
{[%clk 0:01:16.8]} 15... f6 {[%clk 0:01:28]} 16. Ned3 {[%clk 0:01:08.9]} 16...
Qf7 {[%clk 0:01:23.6]} 17. Nxe4 {[%clk 0:00:47.6]} 17... dxe4 {[%clk 0:01:24.5]}
18. Nc5 {[%clk 0:00:48.3]} 18... e5 {[%clk 0:01:18.6]} 19. Nxe4 {[%clk
0:00:44.5]} 19... Bxh3 {[%clk 0:01:15.6]} 20. Nxd6 {[%clk 0:00:37.1]} 20... Qd5
{[%clk 0:01:02.3]} 21. gxh3 {[%clk 0:00:29.1]} 21... Qxd6 {[%clk 0:01:02.2]} 22.
dxe5 {[%clk 0:00:27.3]} 22... Qxd1+ {[%clk 0:01:00.9]} 23. Rxd1 {[%clk 0:00:28]}
23... fxe5 {[%clk 0:01:01.2]} 24. fxe5 {[%clk 0:00:22.9]} 24... Rad8 {[%clk
0:01:01.7]} 25. Re1 {[%clk 0:00:12.4]} 25... Rd5 {[%clk 0:00:58.8]} 26. Bf2
{[%clk 0:00:02.6]} 26... Rd2 {[%clk 0:00:56.5]} 27. Bg3 {[%clk 0:00:03.1]} 27...
Re8 {[%clk 0:00:54.3]} 28. e6 {[%clk 0:00:03.6]} 28... Rxc2 {[%clk 0:00:52.8]}
29. e7 {[%clk 0:00:02.8]} 29... Rxb2 {[%clk 0:00:46.9]} 30. Bh4 {[%clk
0:00:02.7]} 30... Rd2 {[%clk 0:00:44.5]} 31. Rc1 {[%clk 0:00:02.9]} 31... Rd6
{[%clk 0:00:37.8]} 32. Rc5 {[%clk 0:00:03.1]} 32... a4 {[%clk 0:00:34.1]} 33.
Ra5 {[%clk 0:00:03.3]} 33... h6 {[%clk 0:00:30.2]} 34. Rxa4 {[%clk 0:00:02]}
34... g5 {[%clk 0:00:30.3]} 35. Bg3 {[%clk 0:00:01.2]} 35... Rd1+ {[%clk
0:00:30.5]} 36. Kf2 {[%clk 0:00:01.5]} 36... Rxe7 {[%clk 0:00:29.8]} 37. Ra8+
{[%clk 0:00:02.2]} 37... Kg7 {[%clk 0:00:29.4]} 38. a4 {[%clk 0:00:03.1]} 38...
Rd2+ {[%clk 0:00:29]} 39. Kf3 {[%clk 0:00:03.2]} 39... Rd3+ {[%clk 0:00:28]} 40.
Kg4 {[%clk 0:00:03.6]} 40... Kg6 {[%clk 0:00:24.1]} 41. Rg8+ {[%clk 0:00:03.2]}
41... Rg7 {[%clk 0:00:24.2]} 42. Rxg7+ {[%clk 0:00:02.6]} 42... Kxg7 {[%clk
0:00:25.1]} 43. a5 {[%clk 0:00:03.1]} 43... Ra3 {[%clk 0:00:24.1]} 44. Bc7
{[%clk 0:00:03.8]} 44... c5 {[%clk 0:00:23.7]} 45. Kf5 {[%clk 0:00:03.7]} 45...
c4 {[%clk 0:00:23.6]} 46. Ke4 {[%clk 0:00:04.3]} 46... c3 {[%clk 0:00:18.6]} 47.
Kd3 {[%clk 0:00:04.7]} 47... Kg6 {[%clk 0:00:18.8]} 48. Kc2 {[%clk 0:00:04.6]}
48... Kh5 {[%clk 0:00:18.7]} 49. Bb6 {[%clk 0:00:04.2]} 49... Kh4 {[%clk
0:00:18.1]} 50. Kd3 {[%clk 0:00:04.3]} 50... Kxh3 {[%clk 0:00:17.9]} 51. Bc7
{[%clk 0:00:04.9]} 51... h5 {[%clk 0:00:17.8]} 52. Kc4 {[%clk 0:00:05.2]} 52...
c2 {[%clk 0:00:16.9]} 0-1

[Event "Early-Titled-Tuesday-Blitz-September-26-2023"]
[Site "Chess.com"]
[Date "2023.09.26"]
[Round "1"]
[White "artin10862"]
[Black "Yurasova_Daria"]
[Result "1-0"]
[WhiteElo "2891"]
[BlackElo "2502"]
[TimeControl "180+1"]
[EndTime "8:07:55 PDT"]
[Termination "artin10862 won by resignation"]

1. c4 {[%clk 0:02:54.5]} 1... c5 {[%clk 0:02:57.1]} 2. Nf3 {[%clk 0:02:52.4]}
2... b6 {[%clk 0:02:56.3]} 3. e3 {[%clk 0:02:49]} 3... Bb7 {[%clk 0:02:56.1]} 4.
d4 {[%clk 0:02:49.3]} 4... cxd4 {[%clk 0:02:55]} 5. exd4 {[%clk 0:02:49.1]} 5...
Nf6 {[%clk 0:02:52.7]} 6. Nc3 {[%clk 0:02:48]} 6... e6 {[%clk 0:02:52.7]} 7. a3
{[%clk 0:02:43.4]} 7... Be7 {[%clk 0:02:51.6]} 8. d5 {[%clk 0:02:43.2]} 8...
exd5 {[%clk 0:02:28]} 9. cxd5 {[%clk 0:02:42.9]} 9... d6 {[%clk 0:02:22.2]} 10.
Bb5+ {[%clk 0:02:08.6]} 10... Nbd7 {[%clk 0:02:20.9]} 11. Nd4 {[%clk 0:01:58.6]}
11... O-O {[%clk 0:02:17.1]} 12. Nc6 {[%clk 0:01:48.8]} 12... Bxc6 {[%clk
0:02:16.7]} 13. dxc6 {[%clk 0:01:48.2]} 13... Ne5 {[%clk 0:02:10.3]} 14. f4
{[%clk 0:01:47.5]} 14... Ng6 {[%clk 0:02:03.2]} 15. O-O {[%clk 0:01:38]} 15...
a6 {[%clk 0:02:01.2]} 16. Be2 {[%clk 0:01:37.5]} 16... d5 {[%clk 0:01:54]} 17.
Bf3 {[%clk 0:01:36.7]} 17... Bc5+ {[%clk 0:01:48.5]} 18. Kh1 {[%clk 0:01:36.3]}
18... Ne7 {[%clk 0:01:48.6]} 19. b4 {[%clk 0:01:26.3]} 19... Bd6 {[%clk
0:01:48.6]} 20. Nxd5 {[%clk 0:01:25.7]} 20... Nexd5 {[%clk 0:01:47.1]} 21. Bxd5
{[%clk 0:01:25.4]} 21... Bxf4 {[%clk 0:01:30]} 22. Bxf7+ {[%clk 0:01:09.3]}
22... Rxf7 {[%clk 0:01:29.7]} 23. Bxf4 {[%clk 0:01:09]} 23... Qxd1 {[%clk
0:01:26.7]} 24. Raxd1 {[%clk 0:01:08.8]} 24... Rc8 {[%clk 0:01:22.9]} 25. c7
{[%clk 0:01:00.9]} 25... Nd7 {[%clk 0:00:55.6]} 26. Bg3 {[%clk 0:00:51.9]} 26...
Rxf1+ {[%clk 0:00:35.4]} 27. Rxf1 {[%clk 0:00:51.4]} 27... b5 {[%clk 0:00:33.7]}
28. Rd1 {[%clk 0:00:48]} 28... Nb6 {[%clk 0:00:32.8]} 29. Bf2 {[%clk 0:00:41.5]}
29... Rxc7 {[%clk 0:00:31.7]} 30. Bxb6 {[%clk 0:00:40.4]} 30... Rc3 {[%clk
0:00:32.4]} 31. h3 {[%clk 0:00:36.3]} 31... Rxa3 {[%clk 0:00:30.9]} 32. Rd8+
{[%clk 0:00:31.5]} 32... Kf7 {[%clk 0:00:30.7]} 33. Rd7+ {[%clk 0:00:32.4]}
33... Kg6 {[%clk 0:00:30.5]} 34. Bd4 {[%clk 0:00:28]} 34... Rb3 {[%clk
0:00:28.6]} 35. Rd6+ {[%clk 0:00:20.6]} 35... Kf5 {[%clk 0:00:26.7]} 36. Bc5
{[%clk 0:00:19.5]} 36... Ra3 {[%clk 0:00:25.3]} 37. Kh2 {[%clk 0:00:20.1]} 37...
g5 {[%clk 0:00:21.1]} 38. Rh6 {[%clk 0:00:18.1]} 38... g4 {[%clk 0:00:18.6]} 39.
Rh5+ {[%clk 0:00:15.5]} 39... Kg6 {[%clk 0:00:17.1]} 40. hxg4 {[%clk 0:00:15.9]}
40... Rc3 {[%clk 0:00:15.3]} 41. Rd5 {[%clk 0:00:15]} 41... Rc4 {[%clk
0:00:14.9]} 42. Kg3 {[%clk 0:00:14.8]} 42... Rc3+ {[%clk 0:00:15]} 43. Kh4
{[%clk 0:00:14.9]} 43... Rc2 {[%clk 0:00:15.4]} 44. Rd6+ {[%clk 0:00:15.4]}
44... Kg7 {[%clk 0:00:15.3]} 45. Rxa6 {[%clk 0:00:16.1]} 45... Rxg2 {[%clk
0:00:13]} 46. Kg5 {[%clk 0:00:16.3]} 46... Rd2 {[%clk 0:00:12.2]} 47. Ra7+
{[%clk 0:00:15.4]} 47... Kg8 {[%clk 0:00:12.9]} 48. Rb7 {[%clk 0:00:11.8]} 48...
Rd5+ {[%clk 0:00:12.7]} 49. Kf4 {[%clk 0:00:12]} 1-0

[Event "Early-Titled-Tuesday-Blitz-September-26-2023"]
[Site "Chess.com"]
[Date "2023.09.26"]
[Round "1"]
[White "WPWPWP-2015"]
[Black "MITerryble"]
[Result "0-1"]
[WhiteElo "2508"]
[BlackElo "2938"]
[TimeControl "180+1"]
[EndTime "8:07:56 PDT"]
[Termination "MITerryble won by resignation"]

1. e4 {[%clk 0:02:57.1]} 1... e6 {[%clk 0:02:59.7]} 2. d4 {[%clk 0:02:56.5]}
2... d5 {[%clk 0:03:00.4]} 3. Nc3 {[%clk 0:02:56.4]} 3... Nf6 {[%clk 0:03:00.6]}
4. Bg5 {[%clk 0:02:55.3]} 4... Bb4 {[%clk 0:03:00.1]} 5. Ne2 {[%clk 0:02:52.4]}
5... dxe4 {[%clk 0:02:59.7]} 6. a3 {[%clk 0:02:51.8]} 6... Be7 {[%clk
0:02:59.5]} 7. Bxf6 {[%clk 0:02:50.8]} 7... Bxf6 {[%clk 0:02:58.6]} 8. Nxe4
{[%clk 0:02:50.7]} 8... O-O {[%clk 0:02:59.2]} 9. Nxf6+ {[%clk 0:02:47.3]} 9...
Qxf6 {[%clk 0:02:58.9]} 10. g3 {[%clk 0:02:47.4]} 10... e5 {[%clk 0:02:58]} 11.
Bg2 {[%clk 0:02:46.8]} 11... Rd8 {[%clk 0:02:25.8]} 12. d5 {[%clk 0:02:39.8]}
12... Bg4 {[%clk 0:02:22.7]} 13. O-O {[%clk 0:02:36.7]} 13... Nc6 {[%clk
0:02:16.6]} 14. c3 {[%clk 0:02:22.6]} 14... Ne7 {[%clk 0:02:12.7]} 15. c4 {[%clk
0:02:19.6]} 15... Qf5 {[%clk 0:01:14.5]} 16. Re1 {[%clk 0:02:17.2]} 16... Ng6
{[%clk 0:01:06.5]} 17. Qb3 {[%clk 0:02:13.4]} 17... Rab8 {[%clk 0:01:05]} 18.
Qe3 {[%clk 0:02:10.5]} 18... Bh3 {[%clk 0:01:00.5]} 19. Nc3 {[%clk 0:02:01.1]}
19... Bxg2 {[%clk 0:00:57.4]} 20. Kxg2 {[%clk 0:02:00.9]} 20... b6 {[%clk
0:00:58.3]} 21. Nb5 {[%clk 0:01:51.1]} 21... Rd7 {[%clk 0:00:40.5]} 22. Nxa7
{[%clk 0:01:48.5]} 22... Re8 {[%clk 0:00:41.1]} 23. Nc6 {[%clk 0:01:40.6]} 23...
e4 {[%clk 0:00:41.3]} 24. h3 {[%clk 0:01:30.7]} 24... h5 {[%clk 0:00:41.3]} 25.
h4 {[%clk 0:01:25.3]} 25... Qg4 {[%clk 0:00:40.9]} 26. Kh2 {[%clk 0:01:23.3]}
26... Rd6 {[%clk 0:00:33.3]} 27. Nd4 {[%clk 0:01:11.5]} 27... Nxh4 {[%clk
0:00:28.7]} 28. Qf4 {[%clk 0:00:58.6]} 28... Qxf4 {[%clk 0:00:24.2]} 29. gxf4
{[%clk 0:00:59.2]} 29... Rg6 {[%clk 0:00:20.5]} 30. Rg1 {[%clk 0:00:57.1]} 30...
e3 {[%clk 0:00:17.6]} 31. Rxg6 {[%clk 0:00:43.8]} 31... fxg6 {[%clk 0:00:16.5]}
32. fxe3 {[%clk 0:00:34.1]} 32... Rxe3 {[%clk 0:00:16.1]} 33. Ne6 {[%clk
0:00:34.6]} 33... Re2+ {[%clk 0:00:07.8]} 34. Kg3 {[%clk 0:00:30.8]} 34... Nf5+
{[%clk 0:00:08.4]} 35. Kf3 {[%clk 0:00:29.6]} 35... Rxb2 {[%clk 0:00:09.3]} 36.
Nxc7 {[%clk 0:00:26.4]} 36... h4 {[%clk 0:00:09.8]} 37. Ne6 {[%clk 0:00:24.9]}
37... h3 {[%clk 0:00:09.5]} 38. Rh1 {[%clk 0:00:24.4]} 38... h2 {[%clk
0:00:09.9]} 39. Ng5 {[%clk 0:00:20.6]} 39... Rc2 {[%clk 0:00:07.5]} 40. Ne4
{[%clk 0:00:19.6]} 40... Kf7 {[%clk 0:00:06.1]} 41. Ng5+ {[%clk 0:00:18.2]}
41... Ke7 {[%clk 0:00:06.5]} 42. Re1+ {[%clk 0:00:17.6]} 42... Kd6 {[%clk
0:00:07]} 43. Ne4+ {[%clk 0:00:17.5]} 43... Kd7 {[%clk 0:00:07.3]} 44. Rh1
{[%clk 0:00:16.4]} 44... Ra2 {[%clk 0:00:05.8]} 45. Kg4 {[%clk 0:00:15.3]} 45...
Re2 {[%clk 0:00:04.3]} 46. Ng3 {[%clk 0:00:13.2]} 46... Rg2 {[%clk 0:00:04.5]}
47. Kf3 {[%clk 0:00:12.1]} 47... Rxg3+ {[%clk 0:00:05]} 48. Kf2 {[%clk
0:00:12.7]} 48... Rxa3 {[%clk 0:00:04.9]} 49. Rb1 {[%clk 0:00:10.4]} 49... Ra2+
{[%clk 0:00:05]} 50. Kf3 {[%clk 0:00:10.5]} 50... Nd6 {[%clk 0:00:05.2]} 51. Kg4
{[%clk 0:00:06.8]} 51... Nxc4 {[%clk 0:00:05.5]} 52. Kg5 {[%clk 0:00:07.1]}
52... Rg2+ {[%clk 0:00:05.3]} 53. Kh4 {[%clk 0:00:07.1]} 53... Rg1 {[%clk
0:00:06.2]} 0-1

[Event "Early-Titled-Tuesday-Blitz-September-26-2023"]
[Site "Chess.com"]
[Date "2023.09.26"]
[Round "1"]
[White "PapiPapita"]
[Black "nicholas_ilic"]
[Result "1-0"]
[WhiteElo "2589"]
[BlackElo "2221"]
[TimeControl "180+1"]
[EndTime "8:07:56 PDT"]
[Termination "PapiPapita won by checkmate"]

1. d4 {[%clk 0:03:00.9]} 1... Nf6 {[%clk 0:02:56.3]} 2. g3 {[%clk 0:02:56.8]}
2... e6 {[%clk 0:02:55.4]} 3. Bg2 {[%clk 0:02:57.7]} 3... d5 {[%clk 0:02:49]} 4.
Nf3 {[%clk 0:02:56.9]} 4... h6 {[%clk 0:02:41.6]} 5. O-O {[%clk 0:02:55.8]} 5...
Bd6 {[%clk 0:02:41.3]} 6. c4 {[%clk 0:02:51.1]} 6... dxc4 {[%clk 0:02:36.7]} 7.
Nbd2 {[%clk 0:02:46.6]} 7... c6 {[%clk 0:02:29.2]} 8. Nxc4 {[%clk 0:02:44.4]}
8... Bc7 {[%clk 0:02:28.8]} 9. Bf4 {[%clk 0:02:24.8]} 9... Bxf4 {[%clk
0:02:14.4]} 10. gxf4 {[%clk 0:02:25.7]} 10... O-O {[%clk 0:02:14.2]} 11. e3
{[%clk 0:02:16.6]} 11... Re8 {[%clk 0:02:05.1]} 12. h3 {[%clk 0:02:01.6]} 12...
Nbd7 {[%clk 0:02:04.6]} 13. Nfe5 {[%clk 0:01:49.9]} 13... Nd5 {[%clk 0:01:54.4]}
14. Nd6 {[%clk 0:01:38.8]} 14... Re7 {[%clk 0:01:52.1]} 15. Kh2 {[%clk
0:01:13.8]} 15... Nf8 {[%clk 0:01:38.7]} 16. Ne4 {[%clk 0:01:12.9]} 16... f6
{[%clk 0:01:37.5]} 17. Nd3 {[%clk 0:01:10.7]} 17... Qc7 {[%clk 0:01:36.3]} 18.
Kh1 {[%clk 0:01:08.3]} 18... e5 {[%clk 0:01:35.8]} 19. fxe5 {[%clk 0:01:07.2]}
19... fxe5 {[%clk 0:01:36.7]} 20. Nxe5 {[%clk 0:01:06.8]} 20... Bf5 {[%clk
0:01:33.4]} 21. Ng3 {[%clk 0:01:06.2]} 21... Bh7 {[%clk 0:01:29.4]} 22. Rc1
{[%clk 0:01:06]} 22... Qd6 {[%clk 0:01:26]} 23. Qb3 {[%clk 0:01:05.1]} 23... Rd8
{[%clk 0:01:15.9]} 24. e4 {[%clk 0:01:04.1]} 24... Kh8 {[%clk 0:00:53.2]} 25.
exd5 {[%clk 0:01:02.2]} 25... cxd5 {[%clk 0:00:53.7]} 26. Rfe1 {[%clk
0:00:58.5]} 26... Ne6 {[%clk 0:00:52.8]} 27. Ne2 {[%clk 0:00:57.9]} 27... Ng5
{[%clk 0:00:51.4]} 28. Nf4 {[%clk 0:00:56.1]} 28... Ne4 {[%clk 0:00:51.6]} 29.
Qe3 {[%clk 0:00:55.4]} 29... Rf8 {[%clk 0:00:35.3]} 30. Re2 {[%clk 0:00:40.2]}
30... Qf6 {[%clk 0:00:32.5]} 31. Nxd5 {[%clk 0:00:40]} 31... Nxf2+ {[%clk
0:00:08.5]} 32. Rxf2 {[%clk 0:00:38.7]} 32... Qxf2 {[%clk 0:00:05]} 33. Qxf2
{[%clk 0:00:37.3]} 33... Rxf2 {[%clk 0:00:05.9]} 34. Nxe7 {[%clk 0:00:37.4]}
34... Bc2 {[%clk 0:00:02.1]} 35. N7g6+ {[%clk 0:00:29.6]} 35... Kh7 {[%clk
0:00:02.2]} 36. Kg1 {[%clk 0:00:26.5]} 36... Rd2 {[%clk 0:00:01.7]} 37. Nf4
{[%clk 0:00:24.8]} 37... Bf5 {[%clk 0:00:01.7]} 38. d5 {[%clk 0:00:21.7]} 38...
Rxb2 {[%clk 0:00:01.8]} 39. Rd1 {[%clk 0:00:21]} 39... Rxa2 {[%clk 0:00:01.8]}
40. d6 {[%clk 0:00:21.4]} 40... b6 {[%clk 0:00:02.4]} 41. Nd5 {[%clk 0:00:18.9]}
41... Bd7 {[%clk 0:00:02.2]} 42. Nxd7 {[%clk 0:00:18.8]} 42... Ra3 {[%clk
0:00:02.1]} 43. Ne7 {[%clk 0:00:18.7]} 43... b5 {[%clk 0:00:02.1]} 44. Rf1
{[%clk 0:00:15.1]} 44... b4 {[%clk 0:00:02.3]} 45. Be4+ {[%clk 0:00:15.6]} 45...
g6 {[%clk 0:00:02.4]} 46. Bxg6+ {[%clk 0:00:15.8]} 46... Kg7 {[%clk 0:00:02.8]}
47. Rf7+ {[%clk 0:00:16.1]} 47... Kh8 {[%clk 0:00:03.3]} 48. Rh7# {[%clk
0:00:15.8]} 1-0

[Event "Early-Titled-Tuesday-Blitz-September-26-2023"]
[Site "Chess.com"]
[Date "2023.09.26"]
[Round "1"]
[White "chezzgirl04"]
[Black "Zarinur"]
[Result "1-0"]
[WhiteElo "2128"]
[BlackElo "2529"]
[TimeControl "180+1"]
[EndTime "8:07:58 PDT"]
[Termination "chezzgirl04 won on time"]

1. e4 {[%clk 0:02:49.7]} 1... e5 {[%clk 0:02:56.2]} 2. Nf3 {[%clk 0:02:49.1]}
2... Nc6 {[%clk 0:02:52.7]} 3. Bb5 {[%clk 0:02:48.2]} 3... a6 {[%clk 0:02:50.1]}
4. Ba4 {[%clk 0:02:48.1]} 4... Nf6 {[%clk 0:02:44.2]} 5. O-O {[%clk 0:02:47.5]}
5... b5 {[%clk 0:02:43]} 6. Bb3 {[%clk 0:02:47.1]} 6... Bc5 {[%clk 0:02:43.6]}
7. c3 {[%clk 0:02:46.9]} 7... d6 {[%clk 0:02:43.2]} 8. d4 {[%clk 0:02:47.2]}
8... Bb6 {[%clk 0:02:42.2]} 9. Be3 {[%clk 0:02:43.8]} 9... O-O {[%clk
0:02:38.9]} 10. a4 {[%clk 0:02:43.6]} 10... Rb8 {[%clk 0:02:24.5]} 11. axb5
{[%clk 0:02:42.3]} 11... axb5 {[%clk 0:02:24]} 12. Nbd2 {[%clk 0:02:24.6]} 12...
Ng4 {[%clk 0:02:22.4]} 13. h3 {[%clk 0:02:20]} 13... Nxe3 {[%clk 0:02:21.9]} 14.
fxe3 {[%clk 0:02:20.4]} 14... Qe7 {[%clk 0:02:16.7]} 15. Qe1 {[%clk 0:02:20.4]}
15... Kh8 {[%clk 0:01:45.1]} 16. Nh4 {[%clk 0:02:19.2]} 16... g6 {[%clk
0:01:40.2]} 17. Nhf3 {[%clk 0:02:13.8]} 17... Na5 {[%clk 0:01:26.8]} 18. Ba2
{[%clk 0:02:12.9]} 18... c5 {[%clk 0:01:19.9]} 19. Qg3 {[%clk 0:01:38.6]} 19...
f6 {[%clk 0:01:12.3]} 20. Kh1 {[%clk 0:01:26.6]} 20... Nc6 {[%clk 0:01:08]} 21.
Bd5 {[%clk 0:01:24]} 21... Bd7 {[%clk 0:01:05.7]} 22. Nb3 {[%clk 0:01:14.4]}
22... Qg7 {[%clk 0:00:46]} 23. Nh4 {[%clk 0:01:06.4]} 23... Ne7 {[%clk
0:00:44.3]} 24. Nd2 {[%clk 0:00:58.8]} 24... Nxd5 {[%clk 0:00:40.5]} 25. exd5
{[%clk 0:00:59]} 25... f5 {[%clk 0:00:40.6]} 26. Ndf3 {[%clk 0:00:53.2]} 26...
e4 {[%clk 0:00:19.9]} 27. Ng5 {[%clk 0:00:51.6]} 27... cxd4 {[%clk 0:00:09.6]}
28. exd4 {[%clk 0:00:44.7]} 28... Rf6 {[%clk 0:00:10.1]} 29. Ra6 {[%clk
0:00:36.6]} 29... h6 {[%clk 0:00:09.7]} 30. Ne6 {[%clk 0:00:29.2]} 30... Bxe6
{[%clk 0:00:09.8]} 31. dxe6 {[%clk 0:00:29.2]} 31... Rxe6 {[%clk 0:00:10.3]} 32.
Rfa1 {[%clk 0:00:20.3]} 32... Bc7 {[%clk 0:00:10.4]} 33. Rc6 {[%clk 0:00:19.2]}
33... Rbe8 {[%clk 0:00:10.6]} 34. Ra7 {[%clk 0:00:18.5]} 34... R8e7 {[%clk
0:00:10.6]} 35. d5 {[%clk 0:00:15.6]} 35... Re5 {[%clk 0:00:10.6]} 36. Nxg6+
{[%clk 0:00:14.9]} 36... Kh7 {[%clk 0:00:11.2]} 37. Raxc7 {[%clk 0:00:08.7]}
37... Rxc7 {[%clk 0:00:10.8]} 38. Nf8+ {[%clk 0:00:07.6]} 38... Qxf8 {[%clk
0:00:06.9]} 39. Rxc7+ {[%clk 0:00:07.2]} 39... Kh8 {[%clk 0:00:07.1]} 40. Qg6
{[%clk 0:00:05.2]} 40... Re7 {[%clk 0:00:05.3]} 41. Qxd6 {[%clk 0:00:04.2]}
41... e3 {[%clk 0:00:03.3]} 42. Qxe7 {[%clk 0:00:04]} 1-0